[Event "Titled Tuesday Blitz August 09 Early 2022"]
[White "Nemurov, Aleksandr"]
[Black "Sarkar, Justin"]
[WhiteFideId "4194187"]
[BlackFideId "2010011"]
[WhiteElo "2190"]
[BlackElo "2076"]
[Result "1-0"]
[Round "05"]
[TimeControl "180+1"]
[Date "2022.08.09"]
[WhiteClock "0:01:11"]
[BlackClock "0:00:02"]

1. d4 {[%clk 0:03:00]}  a6 {[%clk 0:02:36]} 2. e4 {[%clk 0:02:56]}  b5 {[%clk 0:02:35]} 3. Bd3 {[%clk 0:02:55]}  Bb7 {[%clk 0:02:33]} 4. Nf3 {[%clk 0:02:55]}  e6 {[%clk 0:02:32]} 5. O-O {[%clk 0:02:53]}  c5 {[%clk 0:02:30]} 6. c3 {[%clk 0:02:53]}  Nf6 {[%clk 0:02:26]} 7. Nbd2 {[%clk 0:02:51]}  cxd4 {[%clk 0:02:13]} 8. cxd4 {[%clk 0:02:50]}  Be7 {[%clk 0:02:10]} 9. Re1 {[%clk 0:02:49]}  O-O {[%clk 0:02:04]} 10. Nf1 {[%clk 0:02:48]}  d5 {[%clk 0:01:57]} 11. e5 {[%clk 0:02:45]}  Ne4 {[%clk 0:01:57]} 12. Ng3 {[%clk 0:02:44]}  Nxg3 {[%clk 0:01:50]} 13. hxg3 {[%clk 0:02:45]}  Nd7 {[%clk 0:01:44]} 14. Be3 {[%clk 0:02:38]}  Rc8 {[%clk 0:01:40]} 15. Qe2 {[%clk 0:02:32]}  Re8 {[%clk 0:01:33]} 16. Rec1 {[%clk 0:02:31]}  Nb6 {[%clk 0:01:23]} 17. Rxc8 {[%clk 0:02:27]}  Qxc8 {[%clk 0:01:17]} 18. Rc1 {[%clk 0:02:26]}  Qd7 {[%clk 0:01:15]} 19. Bb1 {[%clk 0:02:12]}  Rc8 {[%clk 0:01:10]} 20. Qd3 {[%clk 0:02:08]}  Rxc1+ {[%clk 0:01:06]} 21. Bxc1 {[%clk 0:02:09]}  g6 {[%clk 0:01:04]} 22. Nh2 {[%clk 0:02:06]}  Qc7 {[%clk 0:00:56]} 23. Bh6 {[%clk 0:01:52]}  Qc4 {[%clk 0:00:46]} 24. Qe3 {[%clk 0:01:52]}  b4 {[%clk 0:00:27]} 25. Ng4 {[%clk 0:01:49]}  Nd7 {[%clk 0:00:14]} 26. Bg5 {[%clk 0:01:45]}  Bf8 {[%clk 0:00:07]} 27. Nh6+ {[%clk 0:01:35]}  Bxh6 {[%clk 0:00:04]} 28. Bxh6 {[%clk 0:01:36]}  a5 {[%clk 0:00:04]} 29. Kh2 {[%clk 0:01:30]}  Ba6 {[%clk 0:00:04]} 30. b3 {[%clk 0:01:21]}  Qc8 {[%clk 0:00:03]} 31. Bd3 {[%clk 0:01:20]}  Bxd3 {[%clk 0:00:03]} 32. Qxd3 {[%clk 0:01:21]}  Qc7 {[%clk 0:00:03]} 33. Qa6 {[%clk 0:01:19]}  Nb8 {[%clk 0:00:02]} 34. Qb5 {[%clk 0:01:18]}  Nd7 {[%clk 0:00:02]} 35. g4 {[%clk 0:01:13]}  Qa7 {[%clk 0:00:02]} 36. Qc6 {[%clk 0:01:11]} 1-0


[Site "https://www.chess.com"]

[Event "Titled Tuesday Blitz August 09 Early 2022"]
[White "Omelja, Artem"]
[Black "Perez Rodriguez, Jennifer"]
[WhiteFideId "14119846"]
[BlackFideId "3507831"]
[WhiteElo "2382"]
[BlackElo "2170"]
[Result "1-0"]
[Round "05"]
[TimeControl "180+1"]
[Date "2022.08.09"]
[WhiteClock "0:00:37"]
[BlackClock "0:00:15"]

1. d4 {[%clk 0:02:55]}  Nf6 {[%clk 0:02:56]} 2. c4 {[%clk 0:02:51]}  e6 {[%clk 0:02:56]} 3. Nf3 {[%clk 0:02:50]}  d5 {[%clk 0:02:56]} 4. Nc3 {[%clk 0:02:48]}  Be7 {[%clk 0:02:55]} 5. cxd5 {[%clk 0:02:48]}  exd5 {[%clk 0:02:55]} 6. Bg5 {[%clk 0:02:48]}  c6 {[%clk 0:02:55]} 7. Qc2 {[%clk 0:02:49]}  Nbd7 {[%clk 0:02:55]} 8. e3 {[%clk 0:02:49]}  Nh5 {[%clk 0:02:50]} 9. Bxe7 {[%clk 0:02:47]}  Qxe7 {[%clk 0:02:51]} 10. Be2 {[%clk 0:02:47]}  O-O {[%clk 0:02:47]} 11. O-O {[%clk 0:02:44]}  g6 {[%clk 0:02:44]} 12. Rab1 {[%clk 0:02:44]}  a5 {[%clk 0:02:43]} 13. a3 {[%clk 0:02:44]}  Ng7 {[%clk 0:02:31]} 14. Na4 {[%clk 0:02:38]}  Nf6 {[%clk 0:02:26]} 15. Nb6 {[%clk 0:02:26]}  Bf5 {[%clk 0:02:26]} 16. Bd3 {[%clk 0:02:27]}  Bxd3 {[%clk 0:02:26]} 17. Qxd3 {[%clk 0:02:28]}  Ra6 {[%clk 0:02:18]} 18. Na4 {[%clk 0:02:26]}  Ne4 {[%clk 0:02:14]} 19. Nd2 {[%clk 0:02:20]}  Nf5 {[%clk 0:02:04]} 20. Nxe4 {[%clk 0:02:16]}  dxe4 {[%clk 0:02:03]} 21. Qc2 {[%clk 0:02:15]}  Re8 {[%clk 0:01:50]} 22. Nc5 {[%clk 0:02:14]}  Raa8 {[%clk 0:01:47]} 23. b4 {[%clk 0:02:14]}  axb4 {[%clk 0:01:46]} 24. axb4 {[%clk 0:02:14]}  Nd6 {[%clk 0:01:38]} 25. Ra1 {[%clk 0:02:09]}  Qc7 {[%clk 0:01:35]} 26. Ra4 {[%clk 0:02:03]}  b5 {[%clk 0:01:19]} 27. Rxa8 {[%clk 0:01:59]}  Rxa8 {[%clk 0:01:20]} 28. Nxe4 {[%clk 0:01:57]}  Nxe4 {[%clk 0:01:15]} 29. Qxe4 {[%clk 0:01:57]}  Qd6 {[%clk 0:01:15]} 30. Rc1 {[%clk 0:01:26]}  Qxb4 {[%clk 0:01:11]} 31. Qxc6 {[%clk 0:01:25]}  Ra2 {[%clk 0:01:05]} 32. Qe8+ {[%clk 0:01:11]}  Kg7 {[%clk 0:01:04]} 33. Qe5+ {[%clk 0:01:11]}  Kh6 {[%clk 0:01:03]} 34. h4 {[%clk 0:01:02]}  Qd2 {[%clk 0:00:58]} 35. Qf4+ {[%clk 0:01:00]}  Kg7 {[%clk 0:00:47]} 36. Rc7 {[%clk 0:00:57]}  Ra1+ {[%clk 0:00:47]} 37. Kh2 {[%clk 0:00:56]}  Qa2 {[%clk 0:00:47]} 38. Qe5+ {[%clk 0:00:48]}  Kh6 {[%clk 0:00:46]} 39. Qf6 {[%clk 0:00:39]}  b4 {[%clk 0:00:15]} 40. Rxf7 {[%clk 0:00:37]} 1-0


[Site "https://www.chess.com"]

[Event "Titled Tuesday Blitz August 09 Early 2022"]
[White "Orlov, Georgi"]
[Black "Senlle Caride, Miguel"]
[WhiteFideId "2011271"]
[BlackFideId "2282500"]
[WhiteElo "2595"]
[BlackElo "2339"]
[Result "1-0"]
[Round "05"]
[TimeControl "180+1"]
[Date "2022.08.09"]
[WhiteClock "0:00:38"]
[BlackClock "0:00:01"]

1. d4 {[%clk 0:03:00]}  Nf6 {[%clk 0:02:58]} 2. Nf3 {[%clk 0:03:01]}  g6 {[%clk 0:02:58]} 3. c4 {[%clk 0:03:00]}  Bg7 {[%clk 0:02:58]} 4. Nc3 {[%clk 0:03:00]}  O-O {[%clk 0:02:58]} 5. e4 {[%clk 0:03:00]}  d6 {[%clk 0:02:58]} 6. Be2 {[%clk 0:03:01]}  e5 {[%clk 0:02:56]} 7. dxe5 {[%clk 0:03:01]}  dxe5 {[%clk 0:02:57]} 8. Qxd8 {[%clk 0:03:01]}  Rxd8 {[%clk 0:02:55]} 9. Bg5 {[%clk 0:03:02]}  c6 {[%clk 0:02:46]} 10. Nxe5 {[%clk 0:03:00]}  Re8 {[%clk 0:02:44]} 11. f4 {[%clk 0:02:59]}  h6 {[%clk 0:02:37]} 12. Bh4 {[%clk 0:02:59]}  Nbd7 {[%clk 0:02:21]} 13. Nxd7 {[%clk 0:02:47]}  Bxd7 {[%clk 0:02:21]} 14. e5 {[%clk 0:02:43]}  Nh7 {[%clk 0:02:17]} 15. O-O-O {[%clk 0:02:42]}  Be6 {[%clk 0:02:08]} 16. Bf2 {[%clk 0:02:34]}  Rad8 {[%clk 0:01:59]} 17. Rxd8 {[%clk 0:02:29]}  Rxd8 {[%clk 0:02:00]} 18. Bxa7 {[%clk 0:02:28]}  Re8 {[%clk 0:02:01]} 19. g3 {[%clk 0:02:25]}  g5 {[%clk 0:01:54]} 20. Bd4 {[%clk 0:02:20]}  gxf4 {[%clk 0:01:47]} 21. gxf4 {[%clk 0:02:19]}  Rd8 {[%clk 0:01:47]} 22. Bb6 {[%clk 0:02:16]}  Rd7 {[%clk 0:01:40]} 23. Ne4 {[%clk 0:02:12]}  Kh8 {[%clk 0:01:30]} 24. Nc5 {[%clk 0:02:09]}  Re7 {[%clk 0:01:24]} 25. Rd1 {[%clk 0:02:02]}  Nf8 {[%clk 0:01:19]} 26. Rd8 {[%clk 0:01:52]}  Kh7 {[%clk 0:01:17]} 27. Bd3+ {[%clk 0:01:50]}  Ng6 {[%clk 0:01:12]} 28. f5 {[%clk 0:01:37]}  Nxe5 {[%clk 0:01:06]} 29. fxe6+ {[%clk 0:01:35]}  Nxd3+ {[%clk 0:01:06]} 30. Rxd3 {[%clk 0:01:32]}  fxe6 {[%clk 0:01:05]} 31. Rd7 {[%clk 0:01:31]}  Re8 {[%clk 0:01:03]} 32. Nxb7 {[%clk 0:01:25]}  e5 {[%clk 0:01:02]} 33. Nd6 {[%clk 0:01:25]}  Rf8 {[%clk 0:01:02]} 34. a4 {[%clk 0:01:18]}  Rf1+ {[%clk 0:00:59]} 35. Kc2 {[%clk 0:01:18]}  Rh1 {[%clk 0:00:56]} 36. Ne8 {[%clk 0:01:16]}  Rxh2+ {[%clk 0:00:55]} 37. Kb3 {[%clk 0:01:16]}  Rg2 {[%clk 0:00:53]} 38. a5 {[%clk 0:01:15]}  e4 {[%clk 0:00:51]} 39. a6 {[%clk 0:01:14]}  Rxb2+ {[%clk 0:00:50]} 40. Ka3 {[%clk 0:01:14]}  Rxb6 {[%clk 0:00:48]} 41. Rxg7+ {[%clk 0:01:11]}  Kh8 {[%clk 0:00:48]} 42. a7 {[%clk 0:01:11]}  Ra6+ {[%clk 0:00:47]} 43. Kb3 {[%clk 0:01:11]}  e3 {[%clk 0:00:47]} 44. Re7 {[%clk 0:01:07]}  Kg8 {[%clk 0:00:41]} 45. Nf6+ {[%clk 0:01:00]}  Kf8 {[%clk 0:00:39]} 46. Re8+ {[%clk 0:00:50]}  Kf7 {[%clk 0:00:38]} 47. a8=Q {[%clk 0:00:50]}  e2 {[%clk 0:00:38]} 48. Qxa6 {[%clk 0:00:48]}  e1=Q {[%clk 0:00:38]} 49. Rxe1 {[%clk 0:00:47]}  h5 {[%clk 0:00:37]} 50. Qxc6 {[%clk 0:00:46]}  h4 {[%clk 0:00:37]} 51. Qd7+ {[%clk 0:00:45]}  Kg6 {[%clk 0:00:22]} 52. Qg4+ {[%clk 0:00:44]}  Kh6 {[%clk 0:00:09]} 53. Re8 {[%clk 0:00:39]}  h3 {[%clk 0:00:01]} 54. Rh8# {[%clk 0:00:38]} 1-0


[Site "https://www.chess.com"]

[Event "Titled Tuesday Blitz August 09 Early 2022"]
[White "Ovezdurdyyeva, Jemal"]
[Black "Locci, Damiano"]
[WhiteFideId "14001888"]
[BlackFideId "819751"]
[WhiteElo "1946"]
[BlackElo "2395"]
[Result "1-0"]
[Round "05"]
[TimeControl "180+1"]
[Date "2022.08.09"]
[WhiteClock "0:00:56"]
[BlackClock "0:00:02"]

1. e4 {[%clk 0:03:00]}  e6 {[%clk 0:02:59]} 2. d4 {[%clk 0:02:59]}  d5 {[%clk 0:02:59]} 3. Nd2 {[%clk 0:02:59]}  Be7 {[%clk 0:02:59]} 4. Ngf3 {[%clk 0:02:58]}  Nf6 {[%clk 0:02:58]} 5. Bd3 {[%clk 0:02:51]}  c5 {[%clk 0:02:57]} 6. exd5 {[%clk 0:02:49]}  exd5 {[%clk 0:02:57]} 7. dxc5 {[%clk 0:02:45]}  Bxc5 {[%clk 0:02:55]} 8. O-O {[%clk 0:02:45]}  O-O {[%clk 0:02:56]} 9. Nb3 {[%clk 0:02:44]}  Bb6 {[%clk 0:02:55]} 10. Bg5 {[%clk 0:02:44]}  Nc6 {[%clk 0:02:50]} 11. h3 {[%clk 0:02:41]}  h6 {[%clk 0:02:46]} 12. Bh4 {[%clk 0:02:41]}  Bc7 {[%clk 0:02:44]} 13. c3 {[%clk 0:02:39]}  Be6 {[%clk 0:02:40]} 14. Bc2 {[%clk 0:02:36]}  g5 {[%clk 0:02:24]} 15. Bg3 {[%clk 0:02:33]}  Ne4 {[%clk 0:02:14]} 16. Bxc7 {[%clk 0:02:26]}  Qxc7 {[%clk 0:02:12]} 17. Re1 {[%clk 0:02:26]}  f5 {[%clk 0:02:04]} 18. Nfd4 {[%clk 0:02:15]}  Rae8 {[%clk 0:01:54]} 19. Nxe6 {[%clk 0:02:14]}  Rxe6 {[%clk 0:01:47]} 20. Qxd5 {[%clk 0:02:14]}  Re8 {[%clk 0:01:39]} 21. Qxf5 {[%clk 0:02:08]}  Nd6 {[%clk 0:01:13]} 22. Qxe6+ {[%clk 0:01:53]}  Rxe6 {[%clk 0:01:10]} 23. Rxe6 {[%clk 0:01:54]}  Nc4 {[%clk 0:00:57]} 24. Rxh6 {[%clk 0:01:46]}  Nxb2 {[%clk 0:00:51]} 25. Rg6+ {[%clk 0:01:44]}  Kf7 {[%clk 0:00:50]} 26. Rxg5 {[%clk 0:01:42]}  Ne7 {[%clk 0:00:45]} 27. Rg3 {[%clk 0:01:27]}  Na4 {[%clk 0:00:41]} 28. Nd4 {[%clk 0:01:22]}  Nd5 {[%clk 0:00:14]} 29. Bb3 {[%clk 0:01:19]}  Nb6 {[%clk 0:00:13]} 30. c4 {[%clk 0:01:16]}  Nxc4 {[%clk 0:00:13]} 31. Rc1 {[%clk 0:01:14]}  Ndb6 {[%clk 0:00:10]} 32. Rgc3 {[%clk 0:01:11]}  Qe5 {[%clk 0:00:04]} 33. Bxc4+ {[%clk 0:01:11]}  Nxc4 {[%clk 0:00:05]} 34. Rxc4 {[%clk 0:01:11]}  b5 {[%clk 0:00:04]} 35. Rc7+ {[%clk 0:01:10]}  Ke8 {[%clk 0:00:03]} 36. Nf3 {[%clk 0:01:07]}  Qb2 {[%clk 0:00:02]} 37. R1c2 {[%clk 0:01:01]}  Qb1+ {[%clk 0:00:02]} 38. Kh2 {[%clk 0:01:02]}  Qb4 {[%clk 0:00:02]} 39. g3 {[%clk 0:00:59]}  Qd6 {[%clk 0:00:03]} 40. Rxa7 {[%clk 0:00:57]}  Qd5 {[%clk 0:00:02]} 41. Rc8+ {[%clk 0:00:56]} 1-0


[Site "https://www.chess.com"]

[Event "Titled Tuesday Blitz August 09 Early 2022"]
[White "Papasimakopoulos, Alexandros"]
[Black "Samadov, Read"]
[WhiteFideId "4244125"]
[BlackFideId "13417444"]
[WhiteElo "2357"]
[BlackElo "2084"]
[Result "0-1"]
[Round "05"]
[TimeControl "180+1"]
[Date "2022.08.09"]
[WhiteClock "0:00:24"]
[BlackClock "0:00:48"]

1. d4 {[%clk 0:03:00]}  Nf6 {[%clk 0:02:59]} 2. c4 {[%clk 0:03:01]}  e6 {[%clk 0:02:59]} 3. Nc3 {[%clk 0:03:01]}  Bb4 {[%clk 0:02:58]} 4. Qc2 {[%clk 0:03:02]}  d5 {[%clk 0:02:58]} 5. cxd5 {[%clk 0:03:01]}  exd5 {[%clk 0:02:57]} 6. Bg5 {[%clk 0:03:01]}  h6 {[%clk 0:02:57]} 7. Bh4 {[%clk 0:03:01]}  c5 {[%clk 0:02:58]} 8. dxc5 {[%clk 0:03:01]}  g5 {[%clk 0:02:58]} 9. Bg3 {[%clk 0:03:01]}  Ne4 {[%clk 0:02:59]} 10. e3 {[%clk 0:03:01]}  Qa5 {[%clk 0:02:59]} 11. Ne2 {[%clk 0:03:01]}  Bf5 {[%clk 0:02:58]} 12. Be5 {[%clk 0:02:34]}  O-O {[%clk 0:02:56]} 13. Nd4 {[%clk 0:02:21]}  Re8 {[%clk 0:02:52]} 14. Nb3 {[%clk 0:02:08]}  Qd8 {[%clk 0:01:57]} 15. Bd4 {[%clk 0:01:59]}  Ng3 {[%clk 0:01:53]} 16. Bd3 {[%clk 0:01:37]}  Bxd3 {[%clk 0:01:51]} 17. Qxd3 {[%clk 0:01:38]}  Nxh1 {[%clk 0:01:52]} 18. Qf1 {[%clk 0:01:39]}  Nc6 {[%clk 0:01:49]} 19. O-O-O {[%clk 0:01:37]}  Nxd4 {[%clk 0:01:39]} 20. Rxd4 {[%clk 0:01:34]}  Bxc3 {[%clk 0:01:37]} 21. bxc3 {[%clk 0:01:35]}  Qf6 {[%clk 0:01:37]} 22. Qxh1 {[%clk 0:01:12]}  Qxf2 {[%clk 0:01:36]} 23. Rd2 {[%clk 0:01:01]}  Qxe3 {[%clk 0:01:35]} 24. Qf1 {[%clk 0:00:59]}  Qxc3+ {[%clk 0:01:34]} 25. Kb1 {[%clk 0:01:00]}  a5 {[%clk 0:01:32]} 26. Rd1 {[%clk 0:00:46]}  a4 {[%clk 0:01:31]} 27. Nd4 {[%clk 0:00:47]}  a3 {[%clk 0:01:27]} 28. Qf2 {[%clk 0:00:43]}  Ra4 {[%clk 0:01:26]} 29. Qd2 {[%clk 0:00:42]}  Rb4+ {[%clk 0:01:15]} 30. Nb3 {[%clk 0:00:42]}  Rxb3+ {[%clk 0:00:59]} 31. axb3 {[%clk 0:00:40]}  Qxb3+ {[%clk 0:01:00]} 32. Ka1 {[%clk 0:00:40]}  Re3 {[%clk 0:00:54]} 33. Rb1 {[%clk 0:00:39]}  Qc3+ {[%clk 0:00:52]} 34. Qxc3 {[%clk 0:00:39]}  Rxc3 {[%clk 0:00:53]} 35. Rb5 {[%clk 0:00:28]}  d4 {[%clk 0:00:52]} 36. Rxb7 {[%clk 0:00:28]}  Rxc5 {[%clk 0:00:52]} 37. Rd7 {[%clk 0:00:26]}  Rc1+ {[%clk 0:00:51]} 38. Ka2 {[%clk 0:00:26]}  Rc2+ {[%clk 0:00:52]} 39. Kxa3 {[%clk 0:00:27]}  Rxg2 {[%clk 0:00:53]} 40. h4 {[%clk 0:00:27]}  gxh4 {[%clk 0:00:51]} 41. Rxd4 {[%clk 0:00:27]}  h3 {[%clk 0:00:52]} 42. Rh4 {[%clk 0:00:27]}  h2 {[%clk 0:00:51]} 43. Kb3 {[%clk 0:00:28]}  Kg7 {[%clk 0:00:52]} 44. Kc3 {[%clk 0:00:28]}  Kg6 {[%clk 0:00:52]} 45. Kd3 {[%clk 0:00:29]}  Kg5 {[%clk 0:00:53]} 46. Rh3 {[%clk 0:00:30]}  Kg4 {[%clk 0:00:51]} 47. Rxh6 {[%clk 0:00:29]}  Rg3+ {[%clk 0:00:49]} 48. Ke2 {[%clk 0:00:25]}  Rh3 {[%clk 0:00:49]} 49. Rg6+ {[%clk 0:00:24]}  fxg6 {[%clk 0:00:48]} 0-1


[Site "https://www.chess.com"]

[Event "Titled Tuesday Blitz August 09 Early 2022"]
[White "Parpiev, Isaak"]
[Black "Rostomyan, Mikayel"]
[WhiteFideId "34281576"]
[BlackFideId "13313754"]
[WhiteElo "2049"]
[BlackElo "1426"]
[Result "1-0"]
[Round "05"]
[TimeControl "180+1"]
[Date "2022.08.09"]
[WhiteClock "0:00:11"]
[BlackClock "0:00:44"]

1. e4 {[%clk 0:02:54]}  c5 {[%clk 0:02:59]} 2. Nf3 {[%clk 0:02:53]}  Nc6 {[%clk 0:02:59]} 3. Bb5 {[%clk 0:02:53]}  g6 {[%clk 0:02:59]} 4. Bxc6 {[%clk 0:02:53]}  bxc6 {[%clk 0:03:00]} 5. O-O {[%clk 0:02:47]}  Bg7 {[%clk 0:02:58]} 6. d3 {[%clk 0:02:47]}  d6 {[%clk 0:02:53]} 7. Nc3 {[%clk 0:02:43]}  e5 {[%clk 0:02:53]} 8. Na4 {[%clk 0:02:37]}  Ne7 {[%clk 0:02:51]} 9. a3 {[%clk 0:02:35]}  a5 {[%clk 0:02:51]} 10. Nd2 {[%clk 0:02:28]}  O-O {[%clk 0:02:49]} 11. Nc4 {[%clk 0:02:27]}  Be6 {[%clk 0:02:43]} 12. Bd2 {[%clk 0:02:18]}  f5 {[%clk 0:02:41]} 13. f3 {[%clk 0:02:07]}  f4 {[%clk 0:02:27]} 14. Qe1 {[%clk 0:02:07]}  Bxc4 {[%clk 0:02:21]} 15. dxc4 {[%clk 0:02:08]}  g5 {[%clk 0:02:21]} 16. Rd1 {[%clk 0:02:06]}  h5 {[%clk 0:02:21]} 17. Bc3 {[%clk 0:02:05]}  Qc7 {[%clk 0:02:20]} 18. Qd2 {[%clk 0:02:03]}  Rf6 {[%clk 0:02:19]} 19. Qe2 {[%clk 0:01:36]}  Rg6 {[%clk 0:02:17]} 20. Rd3 {[%clk 0:01:23]}  Nc8 {[%clk 0:02:05]} 21. Rfd1 {[%clk 0:01:20]}  Qf7 {[%clk 0:01:59]} 22. b3 {[%clk 0:01:14]}  g4 {[%clk 0:01:58]} 23. Kh1 {[%clk 0:01:04]}  Bf8 {[%clk 0:01:56]} 24. Qd2 {[%clk 0:00:59]}  Qc7 {[%clk 0:01:42]} 25. g3 {[%clk 0:00:33]}  Bh6 {[%clk 0:01:29]} 26. Bxe5 {[%clk 0:00:22]}  dxe5 {[%clk 0:01:23]} 27. Rd7 {[%clk 0:00:22]}  Bf8 {[%clk 0:01:24]} 28. Rxc7 {[%clk 0:00:22]}  Nd6 {[%clk 0:01:11]} 29. Rxc6 {[%clk 0:00:21]}  gxf3 {[%clk 0:01:08]} 30. Qd5+ {[%clk 0:00:21]}  Kh7 {[%clk 0:01:06]} 31. Qxe5 {[%clk 0:00:19]}  fxg3 {[%clk 0:01:01]} 32. hxg3 {[%clk 0:00:18]}  Re8 {[%clk 0:00:59]} 33. Qxh5+ {[%clk 0:00:17]}  Rh6 {[%clk 0:00:59]} 34. Qxh6+ {[%clk 0:00:17]}  Kxh6 {[%clk 0:01:00]} 35. Rcxd6+ {[%clk 0:00:16]}  Bxd6 {[%clk 0:01:01]} 36. Rxd6+ {[%clk 0:00:16]}  Kg5 {[%clk 0:01:02]} 37. Nxc5 {[%clk 0:00:12]}  Kg4 {[%clk 0:01:01]} 38. Rg6+ {[%clk 0:00:12]}  Kh3 {[%clk 0:01:01]} 39. Nd3 {[%clk 0:00:11]}  f2 {[%clk 0:00:44]} 40. Nxf2# {[%clk 0:00:11]} 1-0


[Site "https://www.chess.com"]

[Event "Titled Tuesday Blitz August 09 Early 2022"]
[White "Pinero Rodriguez, Carlos Jose"]
[Black "Buscar, Michael"]
[WhiteFideId "3901726"]
[BlackFideId "2603616"]
[WhiteElo "2053"]
[BlackElo "2010"]
[Result "0-1"]
[Round "05"]
[TimeControl "180+1"]
[Date "2022.08.09"]
[WhiteClock "0:00:29"]
[BlackClock "0:00:23"]

1. e4 {[%clk 0:02:55]}  c5 {[%clk 0:02:58]} 2. Nf3 {[%clk 0:02:55]}  Nc6 {[%clk 0:02:58]} 3. d4 {[%clk 0:02:55]}  cxd4 {[%clk 0:02:59]} 4. Nxd4 {[%clk 0:02:56]}  Nf6 {[%clk 0:02:59]} 5. Nc3 {[%clk 0:02:56]}  e5 {[%clk 0:03:00]} 6. Ndb5 {[%clk 0:02:56]}  h6 {[%clk 0:03:00]} 7. Nd5 {[%clk 0:02:54]}  Nxd5 {[%clk 0:03:00]} 8. exd5 {[%clk 0:02:53]}  a6 {[%clk 0:03:01]} 9. dxc6 {[%clk 0:02:52]}  axb5 {[%clk 0:03:02]} 10. cxd7+ {[%clk 0:02:50]}  Bxd7 {[%clk 0:03:02]} 11. Bd3 {[%clk 0:02:39]}  Be7 {[%clk 0:02:48]} 12. O-O {[%clk 0:02:39]}  O-O {[%clk 0:02:48]} 13. Qe2 {[%clk 0:02:29]}  Qc7 {[%clk 0:02:12]} 14. Bxb5 {[%clk 0:02:23]}  Bxb5 {[%clk 0:02:11]} 15. Qxb5 {[%clk 0:02:24]}  Qxc2 {[%clk 0:02:11]} 16. Qxb7 {[%clk 0:02:24]}  Bc5 {[%clk 0:02:06]} 17. Qf3 {[%clk 0:02:02]}  Bd4 {[%clk 0:01:54]} 18. Qd1 {[%clk 0:01:45]}  Rfc8 {[%clk 0:01:42]} 19. Qxc2 {[%clk 0:01:45]}  Rxc2 {[%clk 0:01:42]} 20. a4 {[%clk 0:01:40]}  Ra5 {[%clk 0:01:26]} 21. b4 {[%clk 0:01:31]}  Bxa1 {[%clk 0:01:16]} 22. bxa5 {[%clk 0:01:31]}  Bd4 {[%clk 0:01:16]} 23. Be3 {[%clk 0:01:15]}  Ra2 {[%clk 0:01:09]} 24. g3 {[%clk 0:01:00]}  Bxe3 {[%clk 0:01:04]} 25. fxe3 {[%clk 0:01:01]}  Rxa4 {[%clk 0:01:04]} 26. Rd1 {[%clk 0:00:54]}  Rxa5 {[%clk 0:01:02]} 27. Kg2 {[%clk 0:00:54]}  Ra2+ {[%clk 0:00:56]} 28. Kh3 {[%clk 0:00:45]}  Re2 {[%clk 0:00:50]} 29. Rd3 {[%clk 0:00:44]}  Kh7 {[%clk 0:00:49]} 30. g4 {[%clk 0:00:44]}  Kg6 {[%clk 0:00:43]} 31. Kg3 {[%clk 0:00:44]}  Ra2 {[%clk 0:00:21]} 32. Rb3 {[%clk 0:00:43]}  f6 {[%clk 0:00:20]} 33. Rc3 {[%clk 0:00:42]}  Ra4 {[%clk 0:00:20]} 34. Rb3 {[%clk 0:00:40]}  h5 {[%clk 0:00:20]} 35. gxh5+ {[%clk 0:00:37]}  Kxh5 {[%clk 0:00:20]} 36. Rb7 {[%clk 0:00:36]}  Rg4+ {[%clk 0:00:20]} 37. Kf3 {[%clk 0:00:35]}  e4+ {[%clk 0:00:20]} 38. Kf2 {[%clk 0:00:35]}  f5 {[%clk 0:00:18]} 39. Rb8 {[%clk 0:00:30]}  Rh4 {[%clk 0:00:17]} 40. Rh8+ {[%clk 0:00:28]}  Kg4 {[%clk 0:00:16]} 41. Rg8 {[%clk 0:00:22]}  Rxh2+ {[%clk 0:00:15]} 42. Kg1 {[%clk 0:00:22]}  Rh7 {[%clk 0:00:15]} 43. Kf2 {[%clk 0:00:22]}  g5 {[%clk 0:00:15]} 44. Rg6 {[%clk 0:00:21]}  Rh2+ {[%clk 0:00:15]} 45. Kg1 {[%clk 0:00:21]}  Rh3 {[%clk 0:00:15]} 46. Kf2 {[%clk 0:00:21]}  Rh2+ {[%clk 0:00:14]} 47. Kf1 {[%clk 0:00:21]}  Kf3 {[%clk 0:00:13]} 48. Rxg5 {[%clk 0:00:20]}  Rh1+ {[%clk 0:00:13]} 49. Rg1 {[%clk 0:00:20]}  Rxg1+ {[%clk 0:00:13]} 50. Kxg1 {[%clk 0:00:21]}  Kxe3 {[%clk 0:00:14]} 51. Kf1 {[%clk 0:00:22]}  f4 {[%clk 0:00:14]} 52. Kg1 {[%clk 0:00:22]}  f3 {[%clk 0:00:15]} 53. Kf1 {[%clk 0:00:23]}  f2 {[%clk 0:00:16]} 54. Kg2 {[%clk 0:00:23]}  Ke2 {[%clk 0:00:16]} 55. Kg3 {[%clk 0:00:24]}  f1=Q {[%clk 0:00:17]} 56. Kg4 {[%clk 0:00:25]}  Qf3+ {[%clk 0:00:18]} 57. Kg5 {[%clk 0:00:25]}  Kf2 {[%clk 0:00:19]} 58. Kg6 {[%clk 0:00:26]}  e3 {[%clk 0:00:20]} 59. Kg7 {[%clk 0:00:27]}  e2 {[%clk 0:00:21]} 60. Kg8 {[%clk 0:00:28]}  e1=Q {[%clk 0:00:22]} 61. Kg7 {[%clk 0:00:29]}  Qg1+ {[%clk 0:00:22]} 62. Kh8 {[%clk 0:00:29]}  Qfh1# {[%clk 0:00:23]} 0-1


[Site "https://www.chess.com"]